bitfinex/quotes_ETHUSD_20240701
["timestamp","ask_amount","ask_price","bid_price","bid_amount"]
[1719844334060,0.50010472,3463.8,3463.1,2.2728]
[1719844334239,0.50010472,3463.9,3463.1,2.2728]
[1719844334438,0.50010472,3463.9,3463.1,2.3305456]
[1719844334644,2.88667,3464.2,3463.1,5.2181156]
[1719844334847,0.50009173,3464.1,3463.1,3.23124117]
[1719844335081,3.0,3464.7,3463.5,2.88718]
[1719844335082,2.88633,3464.7,3463.5,2.88718]
[1719844335366,5.29992,3464.8,3463.6,3.05773758]
[1719844335367,3.38636612,3464.6,3463.6,3.05773758]
[1719844335680,0.50002612,3464.5,3463.6,3.05773758]
[1719844335894,2.88634,3464.6,3463.6,0.05773758]
[1719844336049,0.5000273,3464.5,3463.6,0.05773758]
[1719844336243,2.88634,3464.6,3463.6,0.05773758]
[1719844336244,0.5000273,3464.4,3463.6,0.88144334]
[1719844336590,2.88634,3464.6,3463.6,0.88144334]
[1719844336888,0.50003276,3464.5,3463.6,0.88144334]
[1719844337091,0.50003276,3464.4,3463.6,0.82370576]
[1719844337247,0.50003276,3464.5,3463.6,0.82370576]
[1719844337450,0.50003276,3464.4,3463.7,0.90607633]
[1719844337755,2.88634,3464.6,3463.7,0.90607633]
[1719844337943,0.50003211,3464.5,3463.7,0.90607633]
[1719844338146,2.88634,3464.6,3463.7,0.90607633]
[1719844338444,0.5000143,3464.5,3463.7,0.90607633]
[1719844338645,2.88634,3464.6,3463.8,0.67933163]
[1719844338959,0.5000207,3464.5,3463.8,0.67933163]
[1719844339164,2.88634,3464.6,3463.8,0.67933163]
[1719844339384,0.50002947,3464.5,3463.8,0.67933163]
[1719844339586,2.88651,3464.4,3463.5,3.0]
[1719844339789,2.88674,3464.2,3463.4,2.292]
[1719844339998,0.50007258,3464.1,3463.4,2.292]
[1719844340295,2.88674,3464.2,3463.4,2.292]
[1719844340598,2.88635,3464.6,3463.5,0.05774069]
[1719844340798,3.38647679,3464.5,3463.5,0.05774069]
[1719844340959,0.50005679,3464.4,3463.4,2.5212]
[1719844341172,0.50005679,3464.3,3463.4,2.57893796]
[1719844341398,2.88642,3464.5,3463.5,0.5466348]
[1719844341579,0.50005156,3464.4,3463.6,2.94488796]
[1719844341784,2.88632,3464.7,3463.6,2.94488796]
[1719844342076,0.50002388,3464.6,3463.7,2.3199]
[1719844342275,0.50002388,3464.5,3463.8,2.88698]
[1719844342493,2.88614,3464.9,3463.8,2.94471474]
[1719844342655,0.49999675,3464.8,3463.8,2.94471474]
[1719844342849,0.49999675,3464.7,3463.7,2.92396228]
[1719844343094,0.49999675,3464.6,3463.8,0.05773477]
[1719844343265,0.49999675,3464.7,3463.8,0.93333248]
[1719844343466,0.49999675,3464.6,3463.8,0.93333248]
[1719844343675,0.49999675,3464.7,3463.8,0.93333248]
[1719844343876,5.29545,3465.1,3463.9,2.88686]
[1719844344101,3.38597831,3465.0,3463.9,2.88686]
[1719844344259,3.38597831,3465.0,3463.9,3.78957525]
[1719844344260,0.49997831,3464.9,3463.9,3.78957525]
[1719844344454,0.49997831,3464.9,3464.1,2.4855]
[1719844344712,0.49997831,3465.0,3464.1,2.4855]
[1719844345008,0.49997831,3464.9,3464.1,2.4855]
[1719844345859,2.88632,3464.7,3464.1,2.4855]
[1719844346203,2.88632,3464.7,3463.4,0.2292]
[1719844346204,1.12722114,3464.6,3463.7,2.2878]
[1719844346409,3.38640831,3464.5,3463.7,2.2878]
[1719844346574,2.88667,3464.2,3463.7,2.2878]
[1719844346760,2.88672,3464.2,3463.3,5.2628]
[1719844347100,2.88672,3464.2,3463.3,2.2628]
[1719844347101,3.709627,3464.2,3463.3,2.2628]
[1719844347310,3.38690215,3464.1,3463.3,2.2628]
[1719844347660,0.5001096,3464.0,3463.3,2.2628]
[1719844347886,2.88681,3464.1,3463.3,2.2628]
[1719844348102,2.88697,3463.9,3463.3,2.2628]
[1719844348397,0.36193438,3463.8,3462.9,2.2628]
[1719844348574,2.88697,3463.9,3462.9,2.2628]
[1719844349179,0.50013672,3463.8,3462.9,2.2628]
[1719844349376,5.36411,3464.1,3462.9,5.1505]
[1719844349699,5.36411,3464.1,3463.0,3.0]
[1719844349700,0.50010534,3464.0,3463.0,3.0]
[1719844349903,5.36411,3464.1,3463.1,1.115061]
[1719844350060,0.50011832,3464.0,3463.0,3.0]
[1719844350262,0.50011832,3463.9,3462.9,2.2628]
[1719844350461,5.36411,3464.1,3462.9,2.2628]
[1719844350663,2.8871,3463.7,3462.9,2.2628]
[1719844350898,2.88717,3463.6,3462.9,2.2628]
[1719844351122,2.88705,3463.8,3462.9,2.2628]
[1719844351414,2.88732,3463.5,3462.5,2.4681]
[1719844351942,2.88734,3463.4,3462.5,2.4681]
[1719844352510,2.88734,3463.4,3462.5,2.75449635]
[1719844352848,5.34295,3463.9,3462.6,3.0]
[1719844353141,3.38721409,3463.8,3462.6,2.88799]
[1719844353322,5.34295,3463.9,3462.7,3.77579963]
[1719844353526,0.50014479,3463.8,3462.8,0.05775059]
[1719844353732,3.38723479,3463.7,3462.7,0.83018452]
[1719844354099,2.88717,3463.6,3462.7,0.83018452]
[1719844354824,5.34294,3463.9,3462.7,0.83018452]
[1719844355033,2.88714,3463.7,3462.6,5.88799]
[1719844355447,0.5001406,3463.6,3462.6,5.88799]
[1719844355735,2.88714,3463.7,3462.6,5.88799]
[1719844355949,0.50014467,3463.6,3462.6,5.88799]
[1719844356095,2.88714,3463.7,3462.6,5.88799]
[1719844356298,2.88717,3463.6,3462.7,1.15289029]
[1719844356595,3.38741078,3463.5,3462.6,3.0]
[1719844356790,2.88714,3463.7,3462.5,5.4681]
[1719844357035,0.5001417,3463.6,3462.7,2.88791]
[1719844357234,2.88695,3463.9,3462.8,2.94557]
[1719844357449,0.50012501,3463.8,3463.0,2.3164]
[1719844357741,2.4447,3464.5,3463.0,2.3164]
[1719844357742,2.88688,3464.0,3463.0,2.3164]
[1719844357960,0.50010807,3463.9,3463.0,2.3164]
[1719844358270,0.50010807,3463.8,3463.1,0.5787428]
[1719844358555,0.50010807,3463.9,3463.1,0.63648974]
[1719844358869,0.50010807,3463.8,3463.1,0.5787428]
[1719844359099,0.50010807,3463.7,3463.0,2.37414539]
[1719844359357,2.88675,3464.1,3463.0,2.37414539]
[1719844359754,0.50009699,3464.0,3463.0,2.37414539]
[1719844360055,0.50009699,3463.9,3463.1,0.58451634]
[1719844360213,0.50009699,3464.0,3463.1,0.58451634]
[1719844361229,3.38694699,3464.0,3463.1,0.58451634]
[1719844361446,0.50009699,3463.9,3463.1,0.58451634]
[1719844361619,3.38701699,3463.9,3463.1,0.58451634]
[1719844361823,0.50009699,3463.8,3463.0,2.3164]
[1719844362121,2.88714,3463.7,3463.0,2.3164]
[1719844362319,3.38726699,3463.6,3462.6,5.3332]
[1719844362613,3.38726699,3463.6,3462.7,4.88258929]
[1719844362614,0.50009699,3463.5,3462.7,4.88258929]
[1719844362834,0.50015357,3463.4,3462.7,4.88258929]
[1719844363073,0.50015357,3463.3,3462.7,4.88258929]
[1719844363267,0.50016137,3463.2,3462.7,3.0]
[1719844363420,2.88717,3463.6,3462.6,5.3332]
[1719844363759,0.5001601,3463.5,3462.6,5.3332]
[1719844364071,0.5001601,3463.4,3462.6,5.3332]
[1719844364323,0.33873301,3463.3,3462.6,2.3332]
[1719844364469,0.33873301,3463.3,3462.5,7.32]
[1719844364470,2.88751,3463.2,3462.5,7.32]
[1719844364673,0.5001601,3463.1,3462.5,7.32]
[1719844365185,2.88767,3463.0,3462.5,7.32]
[1719844365381,0.5001601,3462.9,3462.5,7.32]
[1719844365591,0.5001601,3463.1,3462.5,7.32]
[1719844365911,0.50022165,3463.0,3462.5,7.32]
[1719844366267,0.50022165,3462.9,3462.5,7.32]
[1719844366471,3.51508401,3463.1,3462.5,7.32]
[1719844366774,2.8872,3463.6,3462.5,7.32]
[1719844366966,0.50016762,3463.5,3462.5,7.32]
[1719844367170,0.50016762,3463.4,3462.5,8.581365]
[1719844367430,0.50016762,3463.5,3462.5,8.581365]
[1719844367588,0.50016762,3463.4,3462.5,8.581365]
[1719844367774,2.88734,3463.4,3462.5,1.261365]
[1719844367977,0.50016762,3463.3,3462.5,1.261365]
[1719844368889,2.88734,3463.4,3462.5,1.261365]
[1719844369087,3.38760013,3463.3,3462.3,2.88824]
[1719844369282,0.50018013,3463.2,3462.3,2.88824]
[1719844369515,0.50018013,3463.3,3462.2,2.4055]
[1719844369685,2.88758,3463.2,3462.2,2.4055]
[1719844369889,3.464804,3463.4,3462.2,2.4055]
[1719844369890,0.50018013,3463.1,3462.2,5.29383]
[1719844370090,3.38760013,3463.3,3462.3,1.14688383]
[1719844370397,0.50018013,3463.2,3462.3,1.14688383]
[1719844370993,0.50018013,3463.2,3462.4,2.88811]
[1719844371224,0.50018013,3463.3,3462.4,2.88811]
[1719844371409,0.50018013,3463.4,3462.4,2.88811]
[1719844371731,0.50018013,3463.4,3463.1,2.4431]
[1719844371887,5.1999,3464.2,3463.1,2.4431]
[1719844371888,0.50018013,3464.1,3463.1,2.4431]
[1719844372092,0.50008995,3464.0,3463.3,2.8874]
[1719844372294,2.85,3464.2,3463.3,3.42622469]
[1719844372295,0.50008995,3463.9,3463.3,3.42622469]
[1719844372527,2.85,3464.2,3463.3,3.42622469]
[1719844372835,0.50004987,3464.1,3463.3,3.42622469]
[1719844373045,0.50004987,3464.0,3463.3,3.42622469]
[1719844373216,0.50004987,3463.9,3463.3,3.42622469]
[1719844373519,0.50004987,3463.8,3463.3,3.42622469]
[1719844373720,2.85,3464.2,3463.4,0.58693247]
[1719844373902,0.50005117,3464.1,3463.3,2.8874]
[1719844374101,0.50005117,3464.0,3463.1,2.50084437]
[1719844374421,0.50005117,3463.9,3463.1,2.50084437]
[1719844374623,3.38686117,3464.1,3463.1,2.4431]
[1719844374827,0.50005117,3464.0,3463.1,5.38842436]
[1719844375029,0.62367212,3464.0,3463.1,2.50084436]
[1719844375191,0.50010244,3463.9,3463.1,2.50084436]
[1719844375384,0.50010244,3463.8,3463.1,5.38836436]
[1719844375588,2.85,3464.2,3463.1,5.38836436]
[1719844375787,0.50007536,3464.1,3463.1,5.38836436]
[1719844376025,1.1237509,3464.0,3463.1,5.38836436]
[1719844376187,0.50007536,3463.9,3463.1,5.38836436]
[1719844376389,0.50007536,3463.9,3463.1,2.50084436]
[1719844376701,0.50007536,3463.9,3463.1,5.33068]
[1719844377920,0.50007536,3463.9,3463.1,5.3306]
[1719844378123,0.50007536,3463.9,3463.1,3.71393444]
[1719844378421,0.62367554,3464.0,3463.1,2.4431]
[1719844378422,0.50007157,3463.8,3463.1,2.4431]
[1719844378592,0.50010166,3463.9,3463.1,2.4431]
[1719844378928,0.50010166,3463.9,3463.1,5.38836435]
[1719844379150,0.50010166,3463.9,3463.1,2.50084435]
[1719844379311,0.50010166,3463.9,3463.1,2.4431]
[1719844379627,0.40106072,3463.8,3463.1,2.4431]
[1719844379817,0.50010166,3463.7,3463.1,2.4431]
[1719844380119,0.50010166,3463.6,3463.1,2.4431]
[1719844380322,0.50010166,3463.5,3463.1,2.4431]
[1719844380619,5.73669,3464.2,3463.1,2.4431]
[1719844380620,0.50010166,3463.4,3463.1,2.4431]
[1719844380822,2.88684,3464.0,3463.1,2.4431]
[1719844380997,5.73669,3464.2,3463.1,5.33066]
[1719844380998,1.36246035,3463.9,3463.1,5.33066]
[1719844381208,0.50010735,3463.8,3463.1,2.4431]
[1719844381403,0.50010735,3463.7,3463.1,2.4431]
[1719844381596,0.50010735,3463.6,3463.1,2.4431]
[1719844381803,0.50010735,3463.5,3463.1,2.4431]
[1719844382001,3.749303,3463.9,3462.8,7.60518334]
[1719844382002,2.88714,3463.7,3462.8,7.32]
[1719844382238,3.70978573,3463.6,3462.8,7.32]
[1719844382393,3.38740735,3463.5,3462.8,7.32]
[1719844382729,0.50010735,3463.4,3462.6,5.37087]
[1719844382970,0.50010735,3463.5,3462.6,5.37087]
[1719844383111,0.50010735,3463.4,3462.6,5.37087]
[1719844383311,0.50010735,3463.5,3463.0,2.88761]
[1719844383512,0.50010735,3463.4,3463.1,2.3073]
[1719844383714,2.8868,3464.1,3463.1,2.3073]
[1719844384047,4.37599405,3464.0,3463.1,2.3073]
[1719844384350,0.50012374,3463.9,3463.1,2.3073]
[1719844384560,0.33869637,3463.8,3463.1,2.3073]
[1719844384852,0.50012374,3463.7,3463.1,2.3073]
[1719844385008,0.50012374,3463.6,3463.1,2.3073]
[1719844385216,3.50012374,3464.1,3463.1,2.3073]
[1719844385510,0.50012374,3464.0,3463.2,2.88744]
[1719844385773,0.50012374,3463.9,3463.4,2.88729]
[1719844385971,0.50012374,3463.8,3463.7,2.88708]
[1719844386168,2.85,3464.2,3463.7,2.88708]
[1719844386459,0.50000235,3464.1,3463.7,2.88708]
[1719844386810,2.88626,3464.7,3463.5,5.53788331]
[1719844387007,2.88626,3464.7,3463.6,2.88716]
[1719844387008,1.07726643,3464.6,3463.6,2.88716]
[1719844387210,0.50002243,3464.5,3463.7,2.88707]
[1719844387471,0.50001895,3464.4,3463.7,2.88707]
[1719844387749,0.50001895,3464.3,3463.6,0.05773715]
[1719844387934,0.50001895,3464.6,3463.6,0.05773715]
[1719844388138,2.88626,3464.7,3463.6,0.05773715]
[1719844388139,0.50001895,3464.5,3463.6,0.05773715]
[1719844388341,0.50001895,3464.6,3463.6,0.9060372]
[1719844388658,0.50001895,3464.5,3463.6,0.84830005]
[1719844388860,0.50001895,3464.6,3463.6,0.84830005]
[1719844389171,0.50001895,3464.5,3463.6,0.84830005]
[1719844389358,0.50001895,3464.6,3463.6,0.84830005]
[1719844389743,2.8861,3464.9,3463.7,2.88702]
[1719844389958,2.8861,3464.9,3463.8,2.887]
[1719844389959,0.50000905,3464.5,3463.8,2.887]
[1719844390273,0.50000743,3464.4,3463.8,2.887]
[1719844390759,0.50000743,3464.3,3463.7,0.93309405]
[1719844390924,0.50000743,3464.2,3463.7,0.93309405]
[1719844391128,3.38639743,3464.6,3463.7,0.93309405]
[1719844391341,3.38639743,3464.6,3463.5,2.65070331]
[1719844391342,2.11679705,3464.5,3463.5,2.3562]
[1719844391673,0.50000743,3464.4,3463.5,5.24343]
[1719844393050,3.51370974,3464.5,3463.5,2.3562]
[1719844393249,0.50003985,3464.3,3463.5,2.3562]
[1719844393471,0.50003985,3464.2,3463.5,2.3562]
[1719844393619,0.50003985,3464.1,3463.5,2.3562]
[1719844396367,0.50003505,3464.0,3463.5,2.3562]
[1719844396530,0.50004994,3463.9,3463.5,2.3562]
[1719844396722,2.8865,3464.4,3463.5,2.3562]
[1719844396920,1.02227869,3464.3,3463.5,2.3562]
[1719844397161,0.50003869,3464.2,3463.5,2.3562]
[1719844397352,0.50003869,3464.1,3463.5,2.3562]
[1719844397655,0.50003869,3464.0,3463.5,2.3562]
[1719844397826,0.52224,3464.3,3463.5,2.3562]
[1719844398024,0.50003458,3464.2,3463.5,2.3562]
[1719844398259,2.456,3464.7,3463.5,2.3562]
[1719844398260,0.50003458,3464.1,3463.6,0.05774195]
[1719844398464,3.38630458,3464.7,3463.6,0.05774195]
[1719844398660,3.38630458,3464.7,3463.5,6.82817673]
[1719844398661,4.37634973,3464.6,3463.5,2.3562]
[1719844398863,3.38652458,3464.5,3463.5,2.3562]
[1719844399071,1.12732604,3464.4,3463.5,2.3562]
[1719844399270,0.50003458,3464.3,3463.5,2.3562]
[1719844399430,2.88663,3464.3,3463.5,2.3562]
[1719844399625,0.50003977,3464.2,3463.5,2.3562]
[1719844399944,2.88675,3464.1,3463.5,2.3562]
[1719844400144,0.55756992,3464.0,3463.5,2.3562]
[1719844400339,1.0576403,3464.0,3463.5,2.3562]
[1719844400541,0.50007038,3463.9,3463.5,2.3562]
[1719844402444,0.50007038,3464.2,3463.5,2.3562]
[1719844402685,0.50005554,3464.1,3463.5,2.3562]
[1719844402848,0.50005554,3464.0,3463.5,2.3562]
[1719844403177,0.50005554,3463.9,3463.5,2.3562]
[1719844403489,0.50005554,3463.8,3463.5,2.3562]
[1719844403647,0.50005554,3464.1,3463.5,2.3562]
[1719844407362,3.38682554,3464.1,3463.5,2.3562]
[1719844407671,0.88208892,3464.0,3463.2,9.6467]
[1719844407874,0.50005554,3463.9,3463.2,9.6467]
[1719844408999,0.38203338,3464.0,3463.2,9.6467]
[1719844409200,0.50008776,3463.9,3463.2,9.6467]
[1719844409420,0.50008776,3463.8,3463.2,9.6467]
[1719844409626,0.50008776,3463.9,3463.2,11.21839148]
[1719844409820,0.50008776,3463.8,3463.2,11.21839148]
[1719844409984,0.50008776,3463.7,3463.2,11.21839148]
[1719844410293,0.50008776,3463.6,3463.2,11.21839148]
[1719844410495,5.77359,3464.1,3463.2,11.21839148]
[1719844410697,3.38692439,3464.0,3463.2,9.6467]
[1719844410903,0.50008439,3463.9,3463.2,9.6467]
[1719844411109,2.88684,3464.0,3463.2,9.6467]
[1719844411425,0.50008936,3463.9,3463.2,9.6467]
[1719844412295,2.88684,3464.0,3463.2,9.6467]
[1719844412501,0.50009066,3463.8,3463.2,2.3267]
[1719844412696,0.50009066,3463.7,3463.2,2.3267]
[1719844412899,0.50010197,3463.6,3463.2,2.3267]
[1719844413186,0.50010197,3463.5,3463.2,2.3267]
[1719844413387,0.50009679,3463.4,3463.2,2.3267]
[1719844413584,3.26882238,3464.0,3463.2,2.3267]
[1719844413823,1.11564611,3463.9,3463.2,2.3267]
[1719844414045,0.50009587,3463.8,3463.2,2.3267]
[1719844414344,0.50009587,3463.7,3463.2,2.3267]
[1719844414500,0.50009587,3463.6,3463.2,2.3267]
[1719844414697,0.50009587,3463.5,3463.2,2.3267]
[1719844414932,2.88636,3464.6,3463.3,1.19742583]
[1719844415087,1.48964353,3464.5,3463.6,2.88712]
[1719844415292,0.50000583,3464.4,3463.7,2.313]
[1719844415499,0.50000583,3464.3,3463.7,2.313]
[1719844415706,0.50000026,3464.2,3463.7,2.313]
[1719844416023,0.50000026,3464.1,3463.7,2.313]
[1719844416235,0.50000026,3464.6,3463.8,0.52578561]
[1719844416452,0.50000026,3464.0,3463.7,2.313]
[1719844416746,0.50000026,3463.9,3463.7,2.313]
[1719844416911,0.50000026,3464.5,3463.7,2.313]
[1719844418330,2.88634,3464.6,3463.7,2.313]
[1719844418498,0.50001233,3464.4,3463.7,2.313]
[1719844418704,0.50001233,3464.3,3463.7,3.421746]
[1719844419022,0.50001233,3464.2,3463.7,3.421746]
[1719844419206,0.50001233,3464.1,3463.7,3.421746]
[1719844419422,0.50001233,3464.0,3463.7,2.313]
[1719844419627,0.50001233,3463.9,3463.7,2.313]
[1719844419821,0.50001233,3464.3,3463.4,5.4897]
[1719844420021,0.50001233,3463.8,3463.4,5.4897]
[1719844420226,0.50001233,3463.7,3463.4,5.4897]
[1719844420445,0.50001233,3464.3,3463.4,5.4897]
[1719844420644,0.50002875,3464.2,3463.4,7.059411]
[1719844420850,0.50002875,3464.1,3463.4,7.059411]
[1719844421015,0.50002875,3464.0,3463.4,7.059411]
[1719844421349,0.50002875,3463.9,3463.4,7.059411]
[1719844421560,2.4961,3464.5,3463.4,7.059411]
[1719844421561,2.88664,3464.3,3463.4,7.059411]
[1719844421772,0.50003611,3463.8,3463.4,7.059411]
[1719844421935,2.88664,3464.3,3463.4,7.059411]
[1719844422135,0.50003278,3464.2,3463.4,7.059411]
[1719844422353,0.50003278,3464.1,3463.4,7.059411]
[1719844422517,3.38653278,3464.4,3463.5,0.9946791]
[1719844422719,0.50003881,3464.3,3463.5,0.9946791]
[1719844423036,0.50003881,3464.2,3463.5,0.9946791]
[1719844423221,0.50003881,3464.1,3463.4,7.059411]
[1719844423422,0.50003881,3464.0,3463.4,7.059411]
[1719844423733,0.50003881,3463.9,3463.4,7.059411]
[1719844423935,0.50003881,3464.3,3463.4,7.059411]
[1719844424945,0.50004479,3464.2,3463.4,7.059411]
[1719844425156,0.50004479,3464.1,3463.4,7.059411]
[1719844425352,0.50004036,3464.0,3463.4,7.059411]
[1719844425563,0.50004036,3463.9,3463.4,9.946741]
[1719844425773,2.456,3464.7,3463.4,9.946741]
[1719844425774,2.88623,3464.8,3463.5,1.34114956]
[1719844426054,1.49060437,3464.7,3463.7,2.88703]
[1719844426264,1.49060437,3464.6,3463.7,2.88703]
[1719844426444,0.50000518,3464.5,3463.7,2.88703]
[1719844426640,0.50000518,3464.4,3463.7,2.88703]
[1719844426874,0.50000518,3464.3,3463.7,2.88703]
[1719844427073,0.50000518,3464.2,3463.7,2.88703]
[1719844427281,0.50000518,3464.1,3463.7,2.88703]
[1719844427466,0.50000518,3464.0,3463.6,2.4699]
[1719844427685,3.694678,3464.7,3463.6,2.4699]
[1719844427881,4.75323729,3464.6,3463.6,2.4699]
[1719844428199,0.50001543,3464.5,3463.6,2.4699]
[1719844428702,0.50001543,3464.5,3463.6,5.35699]
[1719844429354,0.50001543,3464.4,3463.6,5.35699]
[1719844429555,0.50001543,3464.3,3463.6,5.35699]
[1719844429770,0.50001543,3464.2,3463.6,6.6383931]
[1719844429971,0.50001543,3464.1,3463.6,6.6383931]
[1719844430189,0.50001543,3464.0,3463.6,6.6383931]
[1719844430492,2.88627,3464.7,3463.6,6.6383931]
[1719844430683,1.49024565,3464.6,3463.6,5.35699]
[1719844430860,0.9902336,3464.5,3463.6,5.35699]
[1719844431062,2.88627,3464.7,3463.6,5.35699]
[1719844431368,1.49022393,3464.6,3463.6,5.35699]
[1719844431691,1.92787332,3464.5,3463.6,5.35699]
[1719844431894,0.50000816,3464.4,3463.6,5.35699]
[1719844433696,0.50000816,3464.6,3463.6,5.35699]
[1719844433896,5.19772,3464.9,3463.6,5.35699]
[1719844433897,0.50000816,3464.3,3463.6,5.35699]
[1719844434081,0.50000816,3464.5,3463.8,5.21203]
[1719844434290,0.49996948,3464.4,3463.8,5.26976383]
[1719844434593,0.49996948,3464.3,3464.2,2.8866]
[1719844434757,2.88583,3465.2,3464.2,2.8866]
[1719844435095,1.48975012,3465.1,3464.2,2.8866]
[1719844435298,1.48975012,3465.0,3464.2,2.8866]
[1719844435498,0.49992672,3464.9,3464.2,2.8866]
[1719844435793,0.49992672,3464.8,3464.3,2.88652]
[1719844435954,0.49992672,3464.7,3464.3,2.88652]
[1719844436154,0.49992672,3464.6,3464.3,2.88652]
[1719844436398,10.45702,3465.5,3464.3,2.88652]
[1719844436569,1.48970305,3465.4,3464.3,2.88652]
[1719844436760,1.48970305,3465.3,3464.5,2.4017]
[1719844436959,1.48970305,3465.2,3464.5,2.4017]
[1719844437160,0.49990906,3465.1,3464.5,2.4017]
[1719844437362,0.49989674,3465.0,3464.5,2.45942749]
[1719844437673,0.49989674,3464.9,3464.5,2.99401624]
[1719844437875,2.85,3465.5,3464.5,5.88036624]
[1719844438186,0.49987035,3465.4,3464.5,5.34577749]
[1719844438491,0.49987035,3465.3,3464.5,5.28805]
[1719844438670,0.49987035,3465.2,3464.5,5.28805]
[1719844438858,0.49987035,3465.4,3464.5,5.28805]
[1719844440399,0.49987058,3465.3,3464.6,2.88633]
[1719844440568,0.49985819,3465.2,3464.8,2.4339]
[1719844440762,2.85,3465.5,3464.8,2.49161744]
[1719844440958,0.49983691,3465.4,3464.8,2.4339]
[1719844441163,0.49983691,3465.3,3465.0,2.88598]
[1719844441459,2.85,3465.5,3465.0,2.94369744]
[1719844441664,0.4998211,3465.4,3465.0,2.88595]
[1719844441995,2.85,3465.5,3465.0,2.88595]
[1719844442202,0.49981679,3465.4,3465.0,0.820598]
[1719844442499,1.155913,3467.4,3464.8,2.4339]
[1719844442500,12.63331,3466.5,3465.4,5.29981]
[1719844442709,0.49976241,3466.4,3465.4,5.29981]
[1719844443000,0.49975297,3466.3,3465.4,5.29981]
[1719844443206,0.49975297,3466.4,3465.6,2.88547]
[1719844443371,0.49975297,3466.3,3465.4,5.29983]
[1719844443571,0.49975297,3466.2,3465.4,5.29983]
[1719844443894,0.49975297,3466.1,3465.4,5.2998]
[1719844444075,0.49975297,3466.0,3465.4,5.2998]
[1719844444274,0.49975297,3466.3,3465.5,2.88557]
[1719844445264,1.15430435,3466.3,3465.5,2.88557]
[1719844445506,0.49975297,3466.2,3465.5,2.88557]
[1719844445806,0.49975532,3466.1,3465.5,2.88557]
[1719844446008,0.65455138,3466.3,3465.4,5.29981]
[1719844446188,0.49975971,3466.2,3465.5,2.88558]
[1719844446366,0.49975971,3466.1,3465.5,2.88558]
[1719844446706,0.65455138,3466.3,3465.5,2.88558]
[1719844446862,0.49975586,3466.2,3465.4,2.4142]
[1719844447069,0.4997586,3466.1,3465.4,2.4142]
[1719844447296,0.65455138,3466.3,3465.4,5.29984]
[1719844447470,0.85368868,3466.2,3465.4,5.29984]
[1719844447667,0.35393014,3466.2,3465.4,5.29984]
[1719844447873,3.0,3466.6,3465.6,2.88548]
[1719844448068,0.49974498,3466.5,3465.8,2.88531]
[1719844448271,2.88435,3467.0,3465.9,2.3444]
[1719844448464,0.49969601,3466.9,3465.9,2.3444]
[1719844448670,0.49969601,3466.8,3465.9,5.22959]
[1719844448899,0.3384046,3466.7,3465.9,5.22959]
[1719844449471,8.23079,3467.1,3465.9,5.22959]
[1719844449775,0.49968414,3467.0,3465.9,5.22959]
[1719844450006,0.49968414,3466.9,3466.1,2.88507]
[1719844450205,5.3465,3467.1,3466.2,2.88499]
[1719844450411,0.49967302,3467.0,3466.2,2.88499]
[1719844450624,0.8730313,3467.0,3466.2,2.88499]
[1719844451408,0.8730313,3467.0,3465.9,2.3444]
[1719844451597,2.85,3467.1,3466.4,2.3331]
[1719844452180,2.85,3467.1,3466.5,2.8847]
[1719844452403,2.4984,3467.4,3466.5,2.8847]
[1719844452709,2.8837,3467.8,3466.6,2.8846]
[1719844452710,2.4316,3467.7,3466.6,2.8846]
[1719844452874,1.03113265,3467.6,3466.5,2.88467]
[1719844453067,0.53153,3467.6,3466.5,2.88467]
[1719844453265,0.53153,3467.6,3466.8,2.88447]
[1719844453670,0.53153,3467.6,3466.6,2.88462]
[1719844455306,0.53153,3467.6,3466.4,2.3331]
[1719844455503,2.88414,3467.3,3466.4,2.3331]
[1719844455825,2.456,3467.4,3466.4,2.3331]
[1719844456189,2.88409,3467.3,3466.4,2.3331]
[1719844456607,2.456,3467.4,3466.4,2.3331]
[1719844456830,2.456,3467.4,3466.4,5.21792]
[1719844457047,0.64294838,3467.3,3466.4,5.21792]
[1719844457207,0.64294838,3467.3,3466.4,2.3331]
[1719844457417,2.88435,3467.0,3466.2,3.0]
[1719844457741,2.456,3466.9,3465.7,2.2974]
[1719844458032,2.88464,3466.7,3465.7,2.2974]
[1719844458501,2.88475,3466.5,3465.7,2.2974]
[1719844458688,2.2972,3466.5,3465.6,7.32]
[1719844458890,2.88467,3466.6,3465.6,7.32]
[1719844459200,2.88467,3466.6,3465.6,8.856472]
[1719844459385,2.88467,3466.6,3465.6,7.32]
[1719844459586,2.88487,3466.4,3465.6,7.32]
[1719844460602,2.88495,3466.3,3465.6,7.32]
[1719844460806,2.88513,3466.1,3465.3,2.2734]
[1719844461003,2.88495,3466.3,3465.3,2.2734]
[1719844461209,3.707582,3466.2,3465.3,2.2734]
[1719844461930,0.822572,3466.2,3465.3,5.15914]
[1719844462120,2.8849,3466.4,3465.3,5.15914]
[1719844462931,5.34078,3466.5,3465.3,5.15914]
[1719844462932,2.88493,3466.3,3465.3,2.2734]
[1719844463240,2.885,3466.2,3465.3,2.2734]
[1719844465130,2.8849,3466.4,3465.3,2.2734]
[1719844465332,3.38471772,3466.3,3465.3,2.2734]
[1719844465657,3.75751077,3466.3,3465.3,2.2734]
[1719844465844,2.88502,3466.2,3465.3,2.2734]
[1719844466517,2.456,3465.8,3465.0,7.32]
[1719844466717,2.8855,3465.6,3465.0,7.32]
[1719844467017,0.49985914,3465.5,3464.8,2.3368]
[1719844467222,2.8855,3465.6,3464.8,2.3368]
[1719844467859,0.49985788,3465.5,3464.8,2.3368]
[1719844468061,2.8855,3465.6,3464.8,2.3368]
[1719844468216,0.49985681,3465.5,3464.8,2.3368]
[1719844468416,2.8855,3465.6,3464.8,2.3368]
[1719844468760,0.49985674,3465.5,3464.8,2.3368]
[1719844469054,0.49985674,3465.4,3464.8,2.3368]
[1719844469228,2.88558,3465.5,3464.8,2.3368]
[1719844469456,0.4998738,3465.4,3464.8,2.3368]
[1719844469778,3.19789061,3465.5,3464.8,2.3368]
[1719844469973,0.49986529,3465.4,3464.8,2.3368]
[1719844470182,2.88558,3465.5,3464.8,2.3368]
[1719844470413,2.88571,3465.4,3464.8,2.3368]
[1719844470595,3.38557676,3465.4,3464.8,2.3368]
[1719844470881,2.88571,3465.4,3464.8,2.3368]